bitfinex/quotes_SOLUSD_20250902
["timestamp","ask_amount","ask_price","bid_price","bid_amount"]
[1756778384021,26.06,199.58,199.55,0.03]
[1756778384212,26.06,199.58,199.56,0.69]
[1756778384410,26.06,199.58,199.55,0.03]
[1756778384614,26.06,199.58,199.57,0.69]
[1756778385014,26.06,199.58,199.55,0.72]
[1756778385219,26.06,199.58,199.56,0.69]
[1756778385403,5.101649,199.58,199.57,0.69]
[1756778385610,0.06,199.58,199.57,0.69]
[1756778387012,0.06,199.58,199.55,13.62559401]
[1756778387202,0.06,199.58,199.56,0.69]
[1756778388330,0.06,199.58,199.55,0.03]
[1756778388511,0.06,199.58,199.56,0.69]
[1756778391828,0.06,199.58,199.55,0.03]
[1756778392029,0.06,199.58,199.55,0.72]
[1756778393716,26.0,199.56,199.55,0.03]
[1756778396238,26.0,199.56,199.55,0.72]
[1756778397544,26.0,199.56,199.55,0.03]
[1756778397722,26.71,199.56,199.55,0.03]
[1756778398112,26.0,199.56,199.55,0.03]
[1756778400160,0.71,199.56,199.55,0.03]
[1756778400513,13.595594,199.57,199.55,0.03]
[1756778400733,39.595594,199.57,199.55,0.72]
[1756778400939,26.0,199.57,199.55,0.72]
[1756778401553,5.071885,199.58,199.56,0.69]
[1756778401554,0.06,199.58,199.56,0.69]
[1756778401720,0.06,199.58,199.55,0.03]
[1756778402050,0.71,199.57,199.55,0.03]
[1756778402214,0.71,199.56,199.55,0.03]
[1756778402641,4.08008819,199.56,199.55,0.03]
[1756778403630,9.09111244,199.56,199.55,0.03]
[1756778404736,12.71109097,199.56,199.55,0.03]
[1756778405949,53.01109097,199.56,199.55,0.03]
[1756778406652,53.01109097,199.56,199.55,1e-08]
[1756778406852,53.59760227,199.56,199.55,1e-08]
[1756778407061,53.59760227,199.56,199.53,0.03]
[1756778407062,26.0,199.54,199.53,0.03]
[1756778407242,3.37008819,199.54,199.53,0.03]
[1756778407445,26.0,199.52,199.51,1e-08]
[1756778407642,32.99006672,199.52,199.51,1e-08]
[1756778407840,93.25768958,199.52,199.51,1e-08]
[1756778408334,87.59566072,199.52,199.51,1e-08]
[1756778408665,83.97568219,199.52,199.51,1e-08]
[1756778408964,88.98771105,199.52,199.51,1e-08]
[1756778409338,52.77285095,199.52,199.51,1e-08]
[1756778409541,93.72285095,199.52,199.51,1e-08]
[1756778412658,93.07285095,199.52,199.51,1e-08]
[1756778412960,88.08082209,199.52,199.51,1e-08]
[1756778413265,88.73082209,199.52,199.51,1e-08]
[1756778414057,93.74285095,199.52,199.51,1e-08]
[1756778415355,97.36282948,199.52,199.51,1e-08]
[1756778417857,57.04282948,199.52,199.51,1e-08]
[1756778418156,97.36282948,199.52,199.51,1e-08]
[1756778418745,96.71282948,199.52,199.51,1e-08]
[1756778419263,97.36282948,199.52,199.51,1e-08]
[1756778422279,57.04282948,199.52,199.51,1e-08]
[1756778422454,97.36282948,199.52,199.51,1e-08]
[1756778423571,57.04282948,199.52,199.51,1e-08]
[1756778423751,97.34282948,199.52,199.51,1e-08]
[1756778427156,13.59559401,199.51,199.49,1e-08]
[1756778427469,26.0,199.46,199.38,0.71]
[1756778427674,26.0,199.42,199.31,5.01729056]
[1756778427972,26.0,199.38,199.36,0.71]
[1756778428168,66.3,199.38,199.36,0.71]
[1756778428473,26.0,199.38,199.3,13.59559401]
[1756778428670,40.3,199.37,199.31,0.71]
[1756778428871,40.3,199.37,199.31,5.72718183]
[1756778429063,40.3,199.37,199.32,0.71]
[1756778429570,66.3,199.38,199.32,0.71]
[1756778429770,79.895594,199.38,199.32,0.71]
[1756778430165,71.31557183,199.38,199.32,5.72693876]
[1756778430473,71.31557183,199.38,199.33,0.71]
[1756778430676,71.96557183,199.38,199.33,0.71]
[1756778430974,13.595594,199.37,199.29,13.59559401]
[1756778431157,13.595594,199.37,199.3,0.71]
[1756778431158,26.0,199.33,199.3,0.71]
[1756778431357,26.0,199.33,199.31,0.71]
[1756778431655,26.0,199.33,199.32,0.71]
[1756778431856,26.0,199.33,199.29,0.71]
[1756778432182,31.01703171,199.33,199.3,0.71]
[1756778432479,31.01703171,199.33,199.31,0.71]
[1756778432684,26.0,199.32,199.31,0.71]
[1756778432883,66.3,199.34,199.32,0.71]
[1756778433056,26.0,199.31,199.28,0.71]
[1756778434076,26.0,199.31,199.27,5.01831685]
[1756778434380,66.97,199.31,199.25,0.71]
[1756778434556,71.98738182,199.31,199.25,0.71]
[1756778434883,40.32,199.3,199.25,0.71]
[1756778435081,26.0,199.31,199.25,0.71]
[1756778435259,26.0,199.31,199.29,0.03]
[1756778435563,66.32,199.31,199.29,0.03]
[1756778435754,26.0,199.31,199.29,0.03]
[1756778436070,66.32,199.31,199.29,0.71]
[1756778436282,66.32,199.31,199.3,0.68]
[1756778436283,26.0,199.31,199.3,0.68]
[1756778436468,40.32,199.33,199.3,0.68]
[1756778436663,0.72,199.37,199.31,0.68]
[1756778436863,26.0,199.32,199.31,0.68]
[1756778437065,26.0,199.32,199.29,0.71]
[1756778437590,151.30820199,199.36,199.3,0.68]
[1756778437760,13.595594,199.36,199.3,0.68]
[1756778438097,39.595594,199.36,199.3,0.68]
[1756778438273,0.72,199.4,199.31,5.01730971]
[1756778438467,40.32,199.39,199.32,14.27559401]
[1756778438781,66.32,199.39,199.33,0.68]
[1756778438967,40.32,199.39,199.33,0.68]
[1756778439354,66.32,199.39,199.33,0.68]
[1756778440283,66.32,199.39,199.34,5.01655463]
[1756778440582,26.0,199.39,199.34,5.01655463]
[1756778440782,26.0,199.39,199.35,0.68]
[1756778440985,26.0,199.39,199.36,0.68]
[1756778442377,26.0,199.39,199.36,5.69581498]
[1756778443571,26.0,199.39,199.36,5.01581498]
[1756778444189,40.32,199.41,199.37,0.68]
[1756778444374,41.04,199.41,199.37,5.69573116]
[1756778444574,26.0,199.38,199.31,5.01730971]
[1756778444769,66.32,199.38,199.31,13.59559401]
[1756778444990,0.72,199.37,199.31,13.59559401]
[1756778445172,0.72,199.36,199.31,13.59559401]
[1756778445375,0.72,199.35,199.29,0.03]
[1756778445570,26.0,199.32,199.29,0.03]
[1756778445775,0.72,199.31,199.29,0.03]
[1756778446902,40.32,199.3,199.29,0.03]
[1756778447279,41.04,199.3,199.29,0.03]
[1756778447496,26.0,199.32,199.29,0.03]
[1756778447801,26.0,199.3,199.29,0.71]
[1756778447985,66.32,199.33,199.29,0.71]
[1756778448372,66.32,199.33,199.29,5.72771525]
[1756778448590,26.0,199.33,199.29,5.04771525]
[1756778448800,26.0,199.33,199.29,0.03]
[1756778449091,26.72,199.33,199.29,0.03]
[1756778449285,26.0,199.33,199.29,0.03]
[1756778449488,0.72,199.32,199.29,0.03]
[1756778451490,0.72,199.31,199.29,0.03]
[1756778452597,66.32,199.33,199.29,0.03]
[1756778452980,26.0,199.33,199.3,0.68]
[1756778453278,0.72,199.37,199.31,0.68]
[1756778453279,5.768208,199.37,199.31,0.68]
[1756778453479,5.048208,199.37,199.36,15.92046253]
[1756778453697,0.72,199.44,199.36,14.27559401]
[1756778453908,15.794241,199.44,199.38,13.59559401]
[1756778454075,0.72,199.44,199.38,13.59559401]
[1756778454501,48.875594,199.45,199.39,5.01529665]
[1756778454684,26.0,199.45,199.4,13.59559401]
[1756778455071,26.0,199.45,199.41,0.68]
[1756778455779,0.06,199.47,199.42,0.68]
[1756778456182,0.06,199.47,199.4,14.27559401]
[1756778456183,0.78,199.47,199.4,14.27559401]
[1756778456591,0.72,199.46,199.33,26.0]
[1756778456879,5.07343897,199.47,199.33,26.0]
[1756778456880,26.0,199.44,199.36,13.59559401]
[1756778457086,26.0,199.44,199.38,13.59559401]
[1756778457290,26.0,199.44,199.38,14.27559401]
[1756778457484,26.0,199.44,199.38,0.68]
[1756778457802,26.0,199.42,199.37,13.59559401]
[1756778457976,26.0,199.42,199.38,0.68]
[1756778458395,26.0,199.42,199.39,0.68]
[1756778458596,26.06,199.47,199.41,18.61038765]
[1756778458802,0.06,199.47,199.41,18.61038765]
[1756778458977,26.06,199.47,199.41,18.61038765]
[1756778459184,26.06,199.47,199.38,13.59559401]
[1756778459185,0.72,199.46,199.38,13.59559401]
[1756778459497,0.72,199.45,199.38,13.59559401]
[1756778459706,0.72,199.45,199.4,13.59559401]
[1756778459707,26.0,199.45,199.4,13.59559401]
[1756778459899,26.72,199.45,199.4,13.59559401]
[1756778460093,26.72,199.45,199.4,0.68]
[1756778460295,26.72,199.45,199.38,0.68]
[1756778460497,0.06,199.47,199.41,5.01479364]
[1756778460684,0.06,199.47,199.4,2.32486852]
[1756778460890,26.06,199.47,199.41,14.27559401]
[1756778461083,0.72,199.46,199.38,13.59559401]
[1756778461304,0.72,199.45,199.38,13.59559401]
[1756778461508,0.72,199.44,199.38,13.59559401]
[1756778462010,0.72,199.44,199.37,0.68]
[1756778462205,0.72,199.44,199.3,2.32486852]
[1756778462390,0.72,199.43,199.34,13.59559401]
[1756778462597,5.01454217,199.42,199.34,14.27559401]
[1756778463788,26.0,199.39,199.31,0.68]
[1756778464002,26.0,199.38,199.32,13.59559401]
[1756778464394,0.72,199.37,199.29,13.62559401]
[1756778464600,31.01630298,199.35,199.29,13.62559401]
[1756778465794,31.01630298,199.35,199.29,0.03]
[1756778465997,31.68630298,199.35,199.29,0.03]
[1756778467203,15.081819,199.34,199.29,0.03]
[1756778467398,26.0,199.31,199.29,0.03]
[1756778469330,0.67,199.3,199.29,0.03]
[1756778470706,4.59164085,199.3,199.29,0.03]
[1756778470906,0.67,199.3,199.29,0.03]
[1756778471222,5.68756146,199.3,199.29,0.03]
[1756778472114,26.0,199.3,199.29,0.03]
[1756778472301,26.67,199.3,199.29,0.03]
[1756778472717,26.0,199.3,199.29,0.03]
[1756778473016,31.68756146,199.3,199.29,0.03]
[1756778473217,26.0,199.3,199.29,0.03]
[1756778474103,28.011212,199.3,199.29,0.03]
[1756778474311,2.011212,199.3,199.29,0.03]
[1756778474526,40.3,199.33,199.29,0.03]
[1756778474707,15.082577,199.33,199.29,0.7]
[1756778474901,26.0,199.34,199.3,0.67]
[1756778475096,26.0,199.32,199.29,0.03]
[1756778475301,13.595594,199.36,199.3,0.67]
[1756778475537,18.61185551,199.36,199.3,0.67]
[1756778476012,13.595594,199.36,199.3,0.67]
[1756778476219,39.595594,199.36,199.3,0.67]
[1756778476711,40.97,199.37,199.31,13.59559401]
[1756778476712,45.31580067,199.37,199.31,13.59559401]
[1756778476913,0.67,199.39,199.33,13.59559401]
[1756778477238,0.06,199.47,199.37,5.80564252]
[1756778477422,0.06,199.47,199.39,13.59559401]
[1756778477611,13.655594,199.47,199.37,19.40123653]
[1756778477928,0.06,199.47,199.39,13.59559401]
[1756778478236,0.73,199.47,199.4,0.67]
[1756778478403,26.0,199.45,199.38,13.59559401]
[1756778478603,0.67,199.44,199.35,0.67]
[1756778478825,26.67,199.44,199.36,13.59559401]
[1756778479128,31.68418641,199.44,199.37,0.67]
[1756778479334,26.67,199.44,199.37,5.68579118]
[1756778479540,26.0,199.44,199.38,14.26559401]
[1756778479734,41.03,199.47,199.39,0.67]
[1756778480044,41.03,199.47,199.38,13.59559401]
[1756778480045,26.0,199.43,199.38,13.59559401]
[1756778480246,26.0,199.43,199.38,14.26559401]
[1756778480431,26.67,199.43,199.38,14.26559401]
[1756778481146,0.67,199.42,199.35,0.67]
[1756778481337,0.67,199.42,199.36,13.59559401]
[1756778482041,5.01444358,199.43,199.36,13.59559401]
[1756778482219,0.67,199.41,199.32,14.26559401]
[1756778482419,0.67,199.41,199.32,13.59559401]
[1756778482619,0.67,199.41,199.33,0.67]
[1756778483044,0.67,199.41,199.31,13.59559401]
[1756778483045,26.0,199.4,199.31,13.59559401]
[1756778483344,5.68529665,199.39,199.31,14.26559401]
[1756778483516,0.67,199.39,199.31,19.28284398]
[1756778483717,26.67,199.39,199.33,13.59559401]
[1756778483946,26.67,199.39,199.32,0.67]
[1756778483947,26.0,199.39,199.35,13.59559401]
[1756778484121,26.0,199.39,199.36,0.67]
[1756778484824,40.265594,199.42,199.32,13.59559401]
[1756778485144,40.265594,199.42,199.35,13.59559401]
[1756778485351,26.0,199.42,199.37,13.59559401]
[1756778485644,0.67,199.42,199.37,14.26559401]
[1756778485939,0.67,199.41,199.37,13.59559401]
[1756778486533,0.67,199.4,199.34,0.67]
[1756778486730,0.67,199.4,199.35,13.59559401]
[1756778486919,0.67,199.4,199.34,13.59559401]
[1756778487120,0.67,199.4,199.34,19.2819718]
[1756778487926,5.68506072,199.4,199.34,19.2819718]
[1756778488128,31.68506072,199.4,199.34,19.2819718]
[1756778488342,26.0,199.4,199.34,19.2819718]
[1756778488939,26.0,199.4,199.35,0.67]
[1756778489236,0.67,199.43,199.36,5.68605136]
[1756778489815,0.67,199.43,199.36,0.67]
[1756778490523,26.0,199.41,199.33,5.01678426]
[1756778490746,26.0,199.41,199.34,0.67]
[1756778490937,0.67,199.43,199.34,14.26559401]
[1756778491247,0.67,199.43,199.33,7.33853491]
[1756778491248,26.0,199.42,199.36,13.59559401]
[1756778491443,26.0,199.42,199.37,0.67]
[1756778491653,26.0,199.42,199.38,0.67]
[1756778491944,26.0,199.42,199.36,14.26559401]
[1756778492145,26.67,199.42,199.35,13.59559401]
[1756778493525,5.01479364,199.41,199.35,13.59559401]
[1756778493956,26.67,199.42,199.35,18.61183046]
[1756778494153,26.67,199.42,199.35,19.28183046]
[1756778494359,31.68463427,199.42,199.35,19.28183046]
[1756778495440,31.68463427,199.42,199.35,18.61183046]
[1756778495630,31.68463427,199.42,199.36,5.72601589]
[1756778496036,26.67,199.42,199.37,13.59559401]
[1756778496238,26.0,199.42,199.38,0.71]
[1756778497064,26.67,199.42,199.38,0.71]
[1756778497880,0.67,199.41,199.3,0.03]
[1756778498039,26.0,199.37,199.3,13.62559401]
[1756778498238,0.67,199.36,199.3,13.62559401]
[1756778498538,18.61015198,199.42,199.32,13.59559401]
[1756778498863,26.0,199.39,199.34,13.59559401]
[1756778499045,26.0,199.39,199.35,0.71]
[1756778499250,0.67,199.38,199.32,0.71]
[1756778499565,0.67,199.38,199.31,13.59559401]
[1756778499762,31.01552535,199.39,199.3,0.03]
[1756778500058,0.67,199.37,199.32,13.59559401]
[1756778500231,0.67,199.37,199.32,14.30559401]
[1756778500856,26.0,199.39,199.34,13.59559401]
[1756778501032,0.67,199.42,199.36,13.59559401]
[1756778501850,13.595594,199.44,199.37,0.71]
[1756778502063,19.27965229,199.44,199.37,0.71]
[1756778502371,31.68405829,199.44,199.37,0.71]
[1756778503063,26.67,199.44,199.37,5.72558391]
[1756778503259,31.68410179,199.44,199.37,5.72558391]
[1756778503855,26.67,199.44,199.37,5.72558391]
[1756778504164,0.67,199.43,199.37,5.72558391]
[1756778504348,26.0,199.44,199.38,13.59559401]
[1756778504556,26.0,199.44,199.38,14.30559401]
[1756778504750,26.0,199.44,199.38,13.59559401]
[1756778504970,26.0,199.44,199.41,5.01479364]
[1756778505267,26.0,199.44,199.4,18.61060793]
[1756778505474,133.8,199.46,199.41,0.71]
[1756778505655,133.8,199.46,199.42,13.59559401]
[1756778505974,0.67,199.45,199.42,13.59559401]
[1756778506972,0.67,199.45,199.4,5.01479626]
[1756778507187,0.67,199.45,199.41,13.59559401]
[1756778507551,5.07329293,199.47,199.38,5.01533663]
[1756778507552,0.67,199.44,199.38,5.01533663]
[1756778507754,0.67,199.44,199.39,13.59559401]
[1756778508067,0.67,199.43,199.39,13.59559401]
[1756778508383,0.67,199.42,199.35,14.30559401]
[1756778509046,5.68359081,199.46,199.37,13.59559401]
[1756778509251,0.67,199.45,199.39,13.59559401]
[1756778509667,26.0,199.46,199.4,0.71]
[1756778510452,26.0,199.46,199.41,13.59559401]
[1756778510685,0.06,199.47,199.42,0.71]
[1756778510981,0.06,199.47,199.43,0.71]
[1756778511166,0.06,199.47,199.43,5.72425754]
[1756778511483,26.0,199.46,199.39,0.03]
[1756778511685,26.67,199.46,199.39,0.03]
[1756778511880,26.0,199.44,199.39,0.03]
[1756778512384,0.67,199.43,199.39,0.03]
[1756778512886,0.67,199.42,199.39,0.03]
[1756778513586,31.68418743,199.44,199.39,0.03]
[1756778513970,0.67,199.43,199.39,0.03]
[1756778514375,0.67,199.42,199.39,0.03]
[1756778514772,31.01418743,199.44,199.39,0.03]
[1756778514976,0.67,199.43,199.39,0.03]
[1756778515480,0.67,199.42,199.39,0.03]
[1756778515793,0.67,199.43,199.39,0.03]
[1756778515956,31.01418743,199.44,199.39,0.03]
[1756778516157,0.67,199.43,199.39,0.03]
[1756778516759,4.0386151,199.43,199.39,0.03]
[1756778518071,26.0,199.4,199.39,0.03]
[1756778518273,29.3686151,199.4,199.39,0.03]
[1756778518474,30.0386151,199.4,199.39,0.03]
[1756778519286,35.05366023,199.4,199.39,0.03]
[1756778519977,29.3686151,199.4,199.39,0.03]
[1756778520191,0.67,199.44,199.39,0.03]
[1756778520394,4.04709703,199.43,199.39,0.03]
[1756778520595,29.37709703,199.42,199.39,0.03]
[1756778520893,0.67,199.45,199.39,0.74]
[1756778521071,5.07331669,199.47,199.41,13.59559401]
[1756778521072,3.37665808,199.46,199.41,13.59559401]
[1756778521273,3.43665808,199.47,199.42,0.71]
[1756778521500,26.0,199.45,199.39,0.74]
[1756778521666,26.0,199.45,199.4,13.59559401]
[1756778521865,26.67,199.45,199.4,0.71]
[1756778522066,26.0,199.45,199.41,0.71]
[1756778522303,26.0,199.45,199.42,0.71]
[1756778522593,0.06,199.47,199.43,0.71]
[1756778522765,4.04745804,199.46,199.4,13.59559401]
[1756778523190,3.37745804,199.46,199.4,13.59559401]
[1756778523385,29.37745804,199.46,199.42,5.01454217]
[1756778523694,26.0,199.46,199.43,0.71]
[1756778523874,26.0,199.46,199.41,5.01475562]
[1756778524074,26.0,199.46,199.41,5.72475562]
[1756778524676,0.67,199.45,199.39,13.62559401]
[1756778524889,4.04723191,199.44,199.39,13.62559401]
[1756778525080,0.67,199.44,199.39,13.62559401]
[1756778525387,0.67,199.44,199.39,14.33559401]
[1756778525707,3.37750935,199.44,199.4,0.71]
[1756778525881,3.37750935,199.45,199.4,0.71]
[1756778526084,3.37750935,199.44,199.4,0.71]
[1756778526298,4.09750935,199.45,199.4,0.71]
[1756778526471,3.37750935,199.44,199.4,0.71]
[1756778526671,3.37750935,199.44,199.41,0.71]
[1756778526891,3.37750935,199.45,199.42,0.71]
[1756778527076,3.37750935,199.44,199.43,0.71]
[1756778527282,26.0,199.46,199.44,0.71]
[1756778528399,0.06,199.47,199.45,0.71]
[1756778528591,0.06,199.47,199.46,13.59559401]
[1756778528892,0.06,199.47,199.46,0.71]
[1756778529094,0.06,199.47,199.44,22.23643311]
[1756778529095,0.06,199.47,199.44,13.59559401]
[1756778529492,0.78,199.47,199.43,13.59559401]
[1756778530004,3.43467139,199.47,199.42,13.59559401]
[1756778530209,0.72,199.46,199.42,13.59559401]
[1756778530707,0.72,199.46,199.41,13.59559401]
[1756778531008,0.06,199.47,199.41,13.59559401]
[1756778531186,0.78,199.47,199.41,13.59559401]
[1756778532001,5.79337249,199.47,199.41,13.59559401]
[1756778532988,4.09426393,199.46,199.39,0.03]
[1756778533189,26.0,199.44,199.39,0.03]
[1756778533392,3.37496302,199.43,199.39,0.03]
[1756778533591,4.09496302,199.43,199.39,0.03]
[1756778533803,0.72,199.42,199.39,0.03]
[1756778535202,0.72,199.41,199.39,0.03]
[1756778535404,3.37533265,199.42,199.39,0.03]
[1756778535597,4.09533265,199.42,199.39,0.03]
[1756778536209,0.72,199.42,199.39,0.03]
[1756778536416,26.0,199.4,199.39,0.03]
[1756778536630,29.37588874,199.4,199.39,0.03]
[1756778536791,30.09588874,199.4,199.39,0.03]
[1756778536987,4.09588874,199.4,199.39,0.03]
[1756778537709,34.10973296,199.4,199.39,0.03]
[1756778539092,39.12477809,199.4,199.39,0.03]
[1756778540334,3.37588874,199.4,199.39,0.03]
[1756778540492,26.0,199.4,199.39,0.03]
[1756778541126,0.72,199.45,199.39,0.03]
[1756778541305,5.38310012,199.44,199.39,0.74]
[1756778541628,26.0,199.41,199.39,0.74]
[1756778541831,26.0,199.41,199.39,0.03]
[1756778542127,26.0,199.42,199.39,0.03]
[1756778542319,0.72,199.4,199.39,0.03]
[1756778542521,26.72,199.42,199.39,0.03]
[1756778542834,31.014614,199.42,199.39,0.03]
[1756778542998,0.72,199.4,199.39,0.03]
[1756778543624,3.37314306,199.41,199.39,0.03]
[1756778543804,28.01,199.42,199.39,0.03]
[1756778544222,3.37359638,199.41,199.39,0.03]
[1756778544427,0.72,199.46,199.4,0.71]
[1756778544731,11.81570322,199.46,199.39,0.03]
[1756778544897,26.0,199.43,199.39,0.03]
[1756778545818,26.72,199.43,199.39,0.03]
[1756778546396,0.72,199.42,199.39,0.03]
[1756778546823,4.09447438,199.42,199.39,0.03]
[1756778547299,4.09485519,199.41,199.39,0.03]
[1756778547497,3.37485519,199.4,199.39,0.03]
[1756778547735,5.38515819,199.4,199.39,0.03]
[1756778547936,2.730303,199.4,199.39,0.03]
[1756778548115,28.730303,199.4,199.39,0.03]
[1756778548313,32.10515819,199.4,199.39,0.03]
[1756778548516,37.12020332,199.4,199.39,0.03]
[1756778550535,36.40020332,199.4,199.39,0.03]
[1756778550823,137.71866411,199.46,199.39,0.74]
[1756778551020,6.10313619,199.45,199.39,0.74]
[1756778551212,26.0,199.42,199.39,0.74]
[1756778551423,26.0,199.42,199.39,0.03]
[1756778551924,26.0,199.42,199.39,0.74]
[1756778552315,2.009696,199.45,199.4,0.71]
[1756778552520,3.43343992,199.47,199.41,13.59559401]
[1756778552723,26.0,199.46,199.42,0.71]
[1756778553026,3.37343992,199.45,199.43,0.71]
[1756778553227,3.37343992,199.45,199.4,14.30559401]
[1756778553430,3.43343992,199.47,199.41,0.71]
[1756778554005,8.44674195,199.47,199.39,13.62559401]
[1756778554224,3.37343992,199.46,199.4,0.71]
[1756778555037,3.37343992,199.46,199.41,13.59559401]
[1756778555429,3.37343992,199.46,199.41,14.25559401]
[1756778555631,26.0,199.45,199.42,0.66]
[1756778556139,26.72,199.46,199.41,13.59559401]
[1756778556316,26.72,199.44,199.39,0.03]
[1756778556521,3.37363282,199.43,199.39,0.03]
[1756778557022,26.0,199.4,199.39,0.03]
[1756778557839,26.72,199.4,199.39,0.03]
[1756778559229,26.0,199.4,199.39,0.03]
[1756778559618,26.72,199.4,199.39,0.03]
[1756778560127,31.73504513,199.4,199.39,0.03]
[1756778560937,26.0,199.4,199.39,0.03]
[1756778561160,0.06,199.47,199.4,18.61063914]
[1756778561447,26.0,199.46,199.41,0.66]
[1756778561630,26.0,199.46,199.42,0.66]
[1756778561827,0.06,199.47,199.42,0.66]
[1756778562230,0.06,199.47,199.43,0.66]
[1756778562442,26.06,199.47,199.44,0.66]
[1756778564216,0.06,199.47,199.45,0.66]
[1756778565327,0.06,199.47,199.46,22.89643311]
[1756778565639,0.06,199.47,199.46,14.25559401]
[1756778568242,0.06,199.47,199.46,22.89643311]
[1756778568840,0.06,199.47,199.46,23.39778676]
[1756778569516,0.06,199.47,199.46,20.55203899]
[1756778569722,0.06,199.47,199.46,46.55203899]
[1756778571929,0.06,199.47,199.46,48.56022199]
[1756778573347,0.06,199.49,199.48,59.59559401]
[1756778573653,0.06,199.49,199.48,106.05198872]
[1756778573845,0.06,199.49,199.48,106.21068534]
[1756778574436,0.06,199.49,199.48,164.21068534]
[1756778576952,0.06,199.52,199.51,59.59559401]
[1756778577152,0.06,199.52,199.51,186.35191334]
[1756778577339,0.06,199.52,199.51,186.51068534]
[1756778577546,0.06,199.54,199.52,13.59559401]
[1756778577760,0.06,199.54,199.53,60.0518631]
[1756778578251,0.06,199.54,199.53,60.7118631]
[1756778578668,0.06,199.54,199.53,62.7191391]
[1756778578969,0.06,199.54,199.53,62.6991391]
[1756778582732,0.06,199.54,199.53,62.0391391]
[1756778582932,0.06,199.54,199.53,21.39796134]
[1756778583150,0.78,199.54,199.53,15.60287001]
[1756778583355,0.78,199.54,199.53,53.73559401]
[1756778583735,0.78,199.54,199.53,13.59559401]
[1756778583934,0.78,199.54,199.53,53.73559401]
[1756778585633,0.78,199.54,199.53,59.53068534]
[1756778586343,0.78,199.54,199.53,13.59559401]
[1756778586548,0.78,199.54,199.53,53.71559401]
[1756778586945,0.78,199.54,199.53,13.59559401]
[1756778587155,0.78,199.54,199.53,53.71559401]
[1756778588060,0.78,199.54,199.53,59.51068534]
[1756778588360,0.06,199.54,199.53,59.51068534]
[1756778589561,0.06,199.54,199.53,56.03276509]
[1756778589942,0.06,199.54,199.53,53.71559401]
[1756778592675,0.06,199.54,199.53,56.73276509]
[1756778592864,0.06,199.56,199.55,39.59559401]
[1756778593072,0.06,199.56,199.55,82.53389262]
[1756778593366,0.06,199.56,199.55,83.23389262]
[1756778593765,0.06,199.56,199.55,85.24106862]
[1756778596074,0.06,199.56,199.55,143.24106862]
[1756778596246,0.06,199.56,199.55,142.73994109]
[1756778596647,0.06,199.56,199.55,101.91994109]
[1756778596864,0.06,199.56,199.55,82.01276509]
[1756778597376,0.06,199.56,199.55,82.71276509]
[1756778600259,0.06,199.56,199.55,82.51389262]
[1756778605274,0.06,199.56,199.55,83.21389262]
[1756778607273,0.06,199.57,199.55,83.21389262]
[1756778607468,0.06,199.57,199.56,36.61276509]
[1756778609182,0.06,199.6,199.59,33.59559401]